{"text_format":"1","workbook":"xlsx","n_sheets":1,"sheets":["СВОД"],"not_rendered":{"charts":0,"images":0,"macros":1,"external_links":0,"defined_names":1,"comments":0,"pivot_tables":0},"unopened":[],"bounds":{"document_bytes":16777216,"sheet_cells":100000,"rows_first":2000,"rows_last":500,"rows_between":2000,"halvings":0,"cell_chars":16384,"cell_head_chars":4096},"cells_cut":0,"cells_raw":0,"read":"whole","date_system":"1900"}

{"sheet":"СВОД","index":0,"n_rows":13,"n_cols":36,"rows_kept":13,"cut":false,"hidden":false,"merged":[]}
[]
["Номер","ФИО","Таб.№","2022-02-01","2022-02-02","2022-02-03","2022-02-04","2022-02-05","2022-02-06","2022-02-07","2022-02-08","2022-02-09","2022-02-10","2022-02-11","2022-02-12","2022-02-13","2022-02-14","2022-02-15","2022-02-16","2022-02-17","2022-02-18","2022-02-19","2022-02-20","2022-02-21","2022-02-22","2022-02-23","2022-02-24","2022-02-25","2022-02-26","2022-02-27","2022-02-28","2022-01-29","2022-01-30","2022-01-31","Итого, руб","часы по табелю"]
[1,"Петров И.И.",1111,null,null,null,null,null,null,null,null,null,null,null,null,null,null,null,null,null,null,null,null,null,null,null,null,null,null,null,null,null,null,null,{"$f":"SUM(D3:AH3)","v":0},160]
[2,"Сидоров С.С.",2222,null,null,null,null,null,null,null,null,null,null,null,null,null,null,null,null,null,null,null,null,null,null,null,null,null,null,null,null,null,null,null,0,164]
[3,"Иванов Д.Д.",3333,null,null,null,null,null,null,null,null,null,null,null,null,null,null,null,null,null,null,null,null,null,null,null,null,null,null,null,null,null,null,null,0,108]
[4,"Попов А.А.",4444,null,null,null,null,null,null,null,null,null,null,null,null,null,null,null,null,null,null,null,null,null,null,null,null,null,null,null,null,null,null,null,0,160]
[5,"Табуреткин С.С.",5555,null,null,null,null,null,null,null,null,null,null,null,null,null,null,null,null,null,null,null,null,null,null,null,null,null,null,null,null,null,null,null,0,164]
[1,"Петров В.Г.",914,null,null,null,null,null,null,null,null,null,null,null,null,null,null,null,null,null,null,null,null,null,null,null,null,null,null,null,null,null,null,null,{"$f":"SUM(D8:AH8)","v":0},160]
[2,"Максимов Г.А.",1530,null,null,null,null,null,null,null,null,null,null,null,null,null,null,null,null,null,null,null,null,null,null,null,null,null,null,null,null,null,null,null,0,164]
[3,"Кондукторов А. А.",1740,400,null,null,null,null,null,null,null,null,null,null,null,null,null,null,null,null,null,null,null,null,null,null,null,null,null,null,null,null,null,null,400,108]
[]
[null,"Итого",null,{"$f":"SUM(D3:D7)","v":0},{"$f":"SUM(E3:E7)","v":0},0,{"$f":"SUM(G3:G7)","v":0},0,0,0,0,0,0,0,0,0,0,0,0,0,0,0,0,0,0,0,0,0,0,0,0,0,0,0,{"$f":"SUM(AI3:AI7)","v":0}]
[null,null,null,{"$f":"D12/1800","v":0},{"$f":"E12/1800","v":0},{"$f":"F12/1800","v":0},{"$f":"G12/1800","v":0},14,{"$f":"I12/1800","v":0},{"$f":"J12/1800","v":0},0,0,0,0,0,0,0,0,0,0,0,0,0,0,0,0,0,0,0,{"$f":"AD12/1800","v":0},0,0,{"$f":"AG12/1800","v":0},{"$f":"AH12/1800","v":0},{"$f":"SUM(D13:AH13)","v":14}]